fUST/lending_fUST_20250821
["ID","MTS","AMOUNT","RATE_DAILY","PERIOD"]
[380475359,1755789040618,-480.0,0.00021917,3]
[380475361,1755789040628,-460.0,0.00021917,3]
[380475363,1755789040638,-480.0,0.00021917,3]
[380475365,1755789040647,-480.0,0.00021917,3]
[380475367,1755789040656,-190.486243,0.00021917,2]
[380475369,1755789040665,-953.69,0.00021917,3]
[380475371,1755789040675,-480.0,0.00021917,3]
[380475373,1755789040684,-172.609599,0.00021917,2]
[380475375,1755789040694,-597.44,0.00021917,3]
[380475377,1755789040703,-433.24332317,0.00021917,3]
[380475379,1755789040713,-480.0,0.00021917,3]
[380475381,1755789040723,-480.0,0.00021917,3]
[380475383,1755789040733,-582.62824431,0.00021917,3]
[380475385,1755789040742,-480.0,0.00021917,3]
[380475387,1755789040752,-480.0,0.00021917,3]
[380475388,1755789040762,-480.0,0.00021917,3]
[380475390,1755789040771,-480.0,0.00021917,3]
[380475392,1755789040781,-480.0,0.00021917,3]
[380475394,1755789040791,-480.0,0.00021917,3]
[380475396,1755789040801,-480.0,0.00021917,3]
[380475398,1755789040811,-306.31880843,0.00021917,3]
[380475400,1755789040821,-802.61,0.00021917,3]
[380475402,1755789040831,-480.0,0.00021917,3]
[380475404,1755789040841,-480.0,0.00021917,3]
[380475406,1755789040851,-540.78331657,0.00021917,3]
[380475408,1755789040860,-480.0,0.00021917,3]
[380475410,1755789040870,-151.0,0.00021917,2]
[380475412,1755789040879,-480.0,0.00021917,3]
[380475414,1755789040889,-151.0,0.00021917,2]
[380475416,1755789040898,-151.0,0.00021917,2]
[380475418,1755789040908,-480.0,0.00021917,3]
[380475420,1755789040919,-860.79,0.00021917,3]
[380475422,1755789040928,-1163.51,0.00021917,3]
[380475424,1755789040938,-480.0,0.00021917,3]
[380475426,1755789040948,-480.0,0.00021917,3]
[380475428,1755789040957,-480.0,0.00021917,3]
[380475430,1755789040967,-151.0,0.00021917,2]
[380475432,1755789040978,-480.0,0.00021917,3]
[380475434,1755789040988,-151.0,0.00021917,2]
[380475436,1755789040998,-151.0,0.00021917,2]
[380475438,1755789041007,-151.0,0.00021917,2]
[380475440,1755789041017,-583.48,0.00021917,3]
[380475441,1755789041027,-480.0,0.00021917,3]
[380475443,1755789041036,-480.0,0.00021917,3]
[380475445,1755789041046,-151.0,0.00021917,2]
[380475446,1755789041055,-151.0,0.00021917,2]
[380475447,1755789041065,-151.0,0.00021917,2]
[380475449,1755789041075,-480.0,0.00021917,3]
[380475451,1755789041084,-480.0,0.00021917,3]
[380475452,1755789041094,-480.0,0.00021917,3]
[380475454,1755789041103,-440.0,0.00021917,3]
[380475456,1755789041113,-407.12680724,0.00021917,3]
[380475458,1755789041123,-480.0,0.00021917,3]
[380475460,1755789041132,-480.0,0.00021917,3]
[380475462,1755789041142,-151.0,0.00021917,2]
[380475463,1755789041151,-480.0,0.00021917,3]
[380475465,1755789041161,-2215.93,0.00021917,3]
[380475467,1755789041170,-480.0,0.00021917,3]
[380475468,1755789041179,-480.0,0.00021917,3]
[380475469,1755789041190,-480.0,0.00021917,3]
[380475470,1755789041200,-509.13,0.00021917,3]
[380475471,1755789041209,-480.0,0.00021917,3]
[380475472,1755789041219,-556.28,0.00021917,3]
[380475473,1755789041229,-480.0,0.00021917,3]
[380475474,1755789041238,-460.77083845,0.00021917,3]
[380475475,1755789041248,-1064.18,0.00021917,3]
[380475477,1755789041260,-480.0,0.00021917,3]
[380475479,1755789041279,-181.88520843,0.00021917,3]
[380475480,1755789041291,-480.0,0.00021917,3]
[380475481,1755789041306,-1315.57,0.00021917,3]
[380475482,1755789041322,-1420.18,0.00021917,3]
[380475483,1755789041331,-480.0,0.00021917,3]
[380475484,1755789041341,-480.0,0.00021917,3]
[380475486,1755789041351,-851.64,0.00021917,3]
[380475487,1755789041361,-480.0,0.00021917,3]
[380475488,1755789041370,-2237.66,0.00021917,3]
[380475489,1755789041379,-480.0,0.00021917,3]
[380475490,1755789041389,-1026.9,0.00021917,3]
[380475491,1755789041398,-449.74255349,0.00021917,3]
[380475492,1755789041407,-480.0,0.00021917,3]
[380475493,1755789041417,-516.96,0.00021917,3]
[380475494,1755789041427,-480.0,0.00021917,3]
[380475495,1755789041436,-480.0,0.00021917,3]
[380475496,1755789041446,-151.0,0.00021917,2]
[380475497,1755789041455,-151.0,0.00021917,2]
[380475498,1755789041464,-151.0,0.00021917,2]
[380475499,1755789041475,-151.0,0.00021917,2]
[380475500,1755789041484,-151.0,0.00021917,2]
[380475501,1755789041493,-480.0,0.00021917,3]
[380475502,1755789041503,-151.0,0.00021917,2]
[380475503,1755789041513,-186.431632,0.00021917,2]
[380475504,1755789041523,-1339.8,0.00021917,3]
[380475505,1755789041533,-480.0,0.00021917,3]
[380475506,1755789041542,-865.06,0.00021917,3]
[380475507,1755789041552,-831.74,0.00021917,3]
[380475508,1755789041562,-480.0,0.00021917,3]
[380475509,1755789041571,-649.01,0.00021917,3]
[380475510,1755789041581,-480.0,0.00021917,3]
[380475511,1755789041591,-613.65319889,0.00021917,3]
[380475512,1755789041600,-480.0,0.00021917,3]
[380475513,1755789041610,-480.0,0.00021917,3]
[380475514,1755789041620,-480.0,0.00021917,3]
[380475515,1755789041629,-1485.54,0.00021917,3]
[380475516,1755789041638,-480.0,0.00021917,3]
[380475517,1755789041648,-480.0,0.00021917,3]
[380475518,1755789041658,-151.0,0.00021917,2]
[380475519,1755789041667,-480.0,0.00021917,3]
[380475520,1755789041677,-480.0,0.00021917,3]
[380475521,1755789041686,-715.35,0.00021917,3]
[380475522,1755789041695,-480.0,0.00021917,3]
[380475523,1755789041704,-480.0,0.00021917,3]
[380475524,1755789041714,-480.0,0.00021917,3]
[380475525,1755789041724,-480.0,0.00021917,3]
[380475526,1755789041734,-421.66262795,0.00021917,3]
[380475527,1755789041744,-619.73,0.00021917,3]
[380475528,1755789041753,-480.0,0.00021917,3]
[380475529,1755789041762,-766.89,0.00021917,3]
[380475530,1755789041773,-562.13,0.00021917,3]
[380475531,1755789041782,-480.0,0.00021917,3]
[380475532,1755789041792,-480.0,0.00021917,3]
[380475533,1755789041802,-480.0,0.00021917,3]
[380475534,1755789041811,-480.0,0.00021917,3]
[380475535,1755789041820,-598.36,0.00021917,3]
[380475536,1755789041830,-480.0,0.00021917,3]
[380475537,1755789041839,-480.0,0.00021917,3]
[380475538,1755789041849,-480.0,0.00021917,3]
[380475539,1755789041858,-480.0,0.00021917,3]
[380475540,1755789041868,-515.07,0.00021917,3]
[380475541,1755789041877,-460.0,0.00021917,3]
[380475542,1755789041887,-1027.95,0.00021917,3]
[380475543,1755789041896,-683.41,0.00021917,3]
[380475544,1755789041906,-500.0,0.00021917,3]
[380475545,1755789041915,-480.0,0.00021917,3]
[380475546,1755789041924,-693.8,0.00021917,3]
[380475547,1755789041933,-480.0,0.00021917,3]
[380475548,1755789041943,-480.0,0.00021917,3]
[380475549,1755789041952,-728.12,0.00021917,3]
[380475550,1755789041961,-151.0,0.00021917,2]
[380475551,1755789041972,-480.0,0.00021917,3]
[380475552,1755789041988,-480.0,0.00021917,3]
[380475553,1755789041997,-1124.11,0.00021917,3]
[380475554,1755789042007,-480.0,0.00021917,3]
[380475555,1755789042016,-480.0,0.00021917,3]
[380475556,1755789042026,-523.4324866,0.00021917,3]
[380475557,1755789042035,-772.79,0.00021917,3]
[380475558,1755789042045,-687.09,0.00021917,3]
[380475559,1755789042054,-480.0,0.00021917,3]
[380475560,1755789042064,-628.78,0.00021917,3]
[380475561,1755789042073,-480.0,0.00021917,3]
[380475562,1755789042082,-480.0,0.00021917,3]
[380475563,1755789042092,-480.0,0.00021917,3]
[380475564,1755789042101,-480.0,0.00021917,3]
[380475565,1755789042111,-480.0,0.00021917,3]
[380475566,1755789042278,-964.6,0.00021917,3]
[380475567,1755789042288,-480.0,0.00021917,3]
[380475568,1755789042307,-480.0,0.00021917,3]
[380475569,1755789042317,-480.0,0.00021917,3]
[380475570,1755789042327,-642.98,0.00021917,3]
[380475571,1755789042336,-440.61820503,0.00021917,3]
[380475572,1755789042346,-480.0,0.00021917,3]
[380475573,1755789042355,-480.0,0.00021917,3]
[380475574,1755789042364,-480.0,0.00021917,3]
[380475575,1755789042374,-480.0,0.00021917,3]
[380475576,1755789042383,-648.05,0.00021917,3]
[380475577,1755789042393,-151.0,0.00021917,2]
[380475578,1755789042402,-480.0,0.00021917,3]
[380475579,1755789042412,-964.31,0.00021917,3]
[380475581,1755789042422,-480.0,0.00021917,3]
[380475582,1755789042431,-784.31,0.00021917,3]
[380475584,1755789042440,-480.0,0.00021917,3]
[380475586,1755789042450,-480.0,0.00021917,3]
[380475587,1755789042459,-480.0,0.00021917,3]
[380475588,1755789042469,-511.61,0.00021917,3]
[380475589,1755789042480,-480.0,0.00021917,3]
[380475590,1755789042490,-768.74,0.00021917,3]
[380475591,1755789042500,-480.0,0.00021917,3]
[380475592,1755789042510,-2198.28,0.00021917,3]
[380475594,1755789042519,-461.64217663,0.00021917,3]
[380475596,1755789042529,-480.0,0.00021917,3]
[380475598,1755789042539,-480.0,0.00021917,3]
[380475600,1755789042548,-480.0,0.00021917,3]
[380475601,1755789042557,-480.0,0.00021917,3]
[380475602,1755789042566,-2604.65,0.00021917,3]
[380475603,1755789042575,-480.0,0.00021917,3]
[380475604,1755789042585,-480.0,0.00021917,3]
[380475605,1755789042594,-839.68,0.00021917,3]
[380475606,1755789042604,-480.0,0.00021917,3]
[380475608,1755789042613,-151.0,0.00021917,2]
[380475610,1755789042623,-151.0,0.00021917,2]
[380475611,1755789042632,-480.0,0.00021917,3]
[380475612,1755789042641,-151.0,0.00021917,2]
[380475613,1755789042650,-2140.84,0.00021917,3]
[380475614,1755789042659,-480.0,0.00021917,3]
[380475615,1755789042669,-480.0,0.00021917,3]
[380475616,1755789042678,-459.40197119,0.00021917,3]
[380475617,1755789042687,-480.0,0.00021917,3]
[380475618,1755789042697,-480.0,0.00021917,3]
[380475619,1755789042706,-480.0,0.00021917,3]
[380475620,1755789042715,-480.0,0.00021917,3]
[380475621,1755789042725,-480.0,0.00021917,3]
[380475622,1755789042734,-480.0,0.00021917,3]
[380475623,1755789042744,-662.78,0.00021917,3]
[380475624,1755789042753,-576.59,0.00021917,3]
[380475625,1755789042763,-480.0,0.00021917,3]
[380475626,1755789042772,-480.0,0.00021917,3]
[380475627,1755789042781,-1345.06,0.00021917,3]
[380475628,1755789042790,-480.0,0.00021917,3]
[380475629,1755789042799,-1058.94,0.00021917,3]
[380475630,1755789042808,-556.07,0.00021917,3]
[380475631,1755789042818,-151.0,0.00021917,2]
[380475632,1755789042827,-151.0,0.00021917,2]
[380475633,1755789042836,-151.0,0.00021917,2]
[380475634,1755789042845,-151.0,0.00021917,2]
[380475635,1755789042855,-151.0,0.00021917,2]
[380475636,1755789042866,-151.0,0.00021917,2]
[380475637,1755789042876,-173.875214,0.00021917,2]
[380475638,1755789042885,-480.0,0.00021917,3]
[380475639,1755789042895,-480.0,0.00021917,3]
[380475640,1755789042905,-480.0,0.00021917,3]
[380475641,1755789042915,-480.0,0.00021917,3]
[380475642,1755789042924,-1060.69,0.00021917,3]
[380475643,1755789042934,-1884.35,0.00021917,3]
[380475644,1755789042943,-151.0,0.00021917,2]
[380475645,1755789042953,-480.0,0.00021917,3]
[380475646,1755789042962,-151.0,0.00021917,2]
[380475647,1755789042971,-480.0,0.00021917,3]
[380475648,1755789042982,-151.0,0.00021917,2]
[380475649,1755789042992,-151.0,0.00021917,2]
[380475650,1755789043002,-151.0,0.00021917,2]
[380475651,1755789043011,-151.0,0.00021917,2]
[380475652,1755789043021,-194.080417,0.00021917,2]
[380475653,1755789043030,-480.0,0.00021917,3]
[380475654,1755789043040,-602.83,0.00021917,3]
[380475655,1755789043050,-480.0,0.00021917,3]
[380475657,1755789043059,-2493.42,0.00021917,3]
[380475659,1755789043067,-480.0,0.00021917,3]
[380475661,1755789043077,-480.0,0.00021917,3]
[380475662,1755789043086,-277.4211364,0.00021917,3]
[380475663,1755789043095,-912.2,0.00021917,3]
[380475664,1755789043104,-958.22,0.00021917,3]
[380475665,1755789043114,-936.89,0.00021917,3]
[380475666,1755789043123,-625.91,0.00021917,3]
[380475667,1755789043133,-152.753718,0.00021917,2]
[380475668,1755789043143,-1577.55,0.00021917,3]
[380475669,1755789043152,-480.0,0.00021917,3]
[380475670,1755789043161,-480.0,0.00021917,3]
[380475671,1755789043170,-2221.72,0.00021917,3]
[380475672,1755789043179,-922.97,0.00021917,3]
[380475673,1755789043189,-480.0,0.00021917,3]
[380475674,1755789043198,-480.0,0.00021917,3]
[380475675,1755789043207,-480.0,0.00021917,3]
[380475676,1755789043217,-788.36,0.00021917,3]
[380475677,1755789043227,-1813.79,0.00021917,3]
[380475678,1755789043236,-480.0,0.00021917,3]
[380475679,1755789043245,-480.0,0.00021917,3]
[380475680,1755789043255,-480.0,0.00021917,3]
[380475681,1755789043269,-151.0,0.00021917,2]
[380475682,1755789043278,-151.0,0.00021917,2]
[380475683,1755789043288,-151.0,0.00021917,2]
[380475684,1755789043297,-480.0,0.00021917,3]
[380475685,1755789043308,-480.0,0.00021917,3]
[380475686,1755789043318,-734.7,0.00021917,3]
[380475687,1755789043328,-480.0,0.00021917,3]
[380475688,1755789043338,-482.43758831,0.00021917,3]
[380475689,1755789043347,-460.64300508,0.00021917,3]
[380475690,1755789043357,-480.0,0.00021917,3]
[380475691,1755789043367,-792.44,0.00021917,3]
[380475692,1755789043376,-151.0,0.00021917,2]
[380475693,1755789043387,-151.0,0.00021917,2]
[380475694,1755789043397,-480.0,0.00021917,3]
[380475695,1755789043406,-151.0,0.00021917,2]
[380475696,1755789043416,-151.0,0.00021917,2]
[380475697,1755789043426,-151.0,0.00021917,2]
[380475698,1755789043435,-1248.42,0.00021917,3]
[380475699,1755789043445,-480.0,0.00021917,3]
[380475700,1755789043454,-756.71,0.00021917,3]
[380475701,1755789043464,-480.0,0.00021917,3]
[380475702,1755789043474,-480.0,0.00021917,3]
[380475703,1755789043485,-151.0,0.00021917,2]
[380475704,1755789043494,-480.0,0.00021917,3]
[380475705,1755789043503,-151.0,0.00021917,2]
[380475706,1755789043513,-151.0,0.00021917,2]
[380475707,1755789043522,-480.0,0.00021917,3]
[380475708,1755789043532,-527.42,0.00021917,3]
[380475709,1755789043542,-480.0,0.00021917,3]
[380475710,1755789043551,-273.14724219,0.00021917,3]
[380475711,1755789043560,-480.0,0.00021917,3]
[380475712,1755789043570,-480.0,0.00021917,3]
[380475713,1755789043579,-480.0,0.00021917,3]
[380475714,1755789043589,-480.0,0.00021917,3]
[380475715,1755789043598,-1111.35,0.00021917,3]
[380475716,1755789043608,-814.97,0.00021917,3]
[380475717,1755789043617,-564.85,0.00021917,3]
[380475718,1755789043627,-480.0,0.00021917,3]
[380475719,1755789043637,-666.16,0.00021917,3]
[380475720,1755789043646,-651.49,0.00021917,3]
[380475721,1755789043655,-1153.78,0.00021917,3]
[380475722,1755789043665,-480.0,0.00021917,3]
[380475723,1755789043674,-691.17,0.00021917,3]
[380475724,1755789043684,-151.0,0.00021917,2]
[380475725,1755789043693,-480.0,0.00021917,3]
[380475726,1755789043702,-209.527777,0.00021917,2]
[380475727,1755789043711,-480.0,0.00021917,3]
[380475728,1755789043721,-480.0,0.00021917,3]
[380475729,1755789043733,-1210.39,0.00021917,3]
[380475730,1755789043742,-480.0,0.00021917,3]
[380475731,1755789043751,-151.0,0.00021917,2]
[380475732,1755789043761,-480.0,0.00021917,3]
[380475733,1755789043770,-151.0,0.00021917,2]
[380475734,1755789043779,-480.0,0.00021917,3]
[380475735,1755789043789,-151.0,0.00021917,2]
[380475736,1755789043799,-223.234333,0.00021917,2]
[380475737,1755789043808,-500.0,0.00021917,3]
[380475738,1755789043818,-500.0,0.00021917,3]
[380475739,1755789043827,-500.0,0.00021917,3]
[380475740,1755789043837,-480.0,0.00021917,3]
[380475741,1755789043847,-2356.99,0.00021917,3]
[380475742,1755789043858,-942.34,0.00021917,3]
[380475743,1755789043868,-480.0,0.00021917,3]
[380475744,1755789043877,-480.0,0.00021917,3]
[380475745,1755789043886,-942.34,0.00021917,3]
[380475746,1755789043895,-942.34,0.00021917,3]
[380475747,1755789043904,-1000.0,0.00021917,2]
[380475748,1755789043913,-942.34,0.00021917,3]
[380475750,1755789043922,-1000.0,0.00021917,2]
[380475752,1755789043931,-942.34,0.00021917,3]
[380475754,1755789043941,-445.694849,0.00021917,2]
[380475755,1755789043950,-942.34,0.00021917,3]
[380475757,1755789043959,-942.34,0.00021917,3]
[380475759,1755789043968,-942.34,0.00021917,3]
[380475760,1755789043978,-942.34,0.00021917,3]
[380475762,1755789043987,-942.34,0.00021917,3]
[380475764,1755789043996,-942.34,0.00021917,3]
[380475766,1755789044005,-942.34,0.00021917,3]
[380475768,1755789044015,-714.13,0.00021917,3]
[380475770,1755789044025,-942.34,0.00021917,3]
[380475772,1755789044034,-238.49599842,0.00021917,3]
[380475774,1755789044044,-942.34,0.00021917,3]
[380475776,1755789044054,-942.34,0.00021917,3]
[380475778,1755789044063,-151.0,0.00021917,2]
[380475779,1755789044072,-480.0,0.00021917,3]
[380475781,1755789044081,-942.34,0.00021917,3]
[380475782,1755789044090,-151.0,0.00021917,2]
[380475783,1755789044099,-942.34,0.00021917,3]
[380475785,1755789044109,-942.34,0.00021917,3]
[380475787,1755789044119,-942.34,0.00021917,3]
[380475788,1755789044128,-480.0,0.00021917,3]
[380475790,1755789044138,-4962.09,0.00021917,3]
[380475792,1755789044147,-1257.16,0.00021917,3]
[380475794,1755789044157,-480.0,0.00021917,3]
[380475795,1755789044167,-480.0,0.00021917,3]
[380475796,1755789044177,-480.0,0.00021917,3]
[380475797,1755789044186,-344.56625445,0.00021917,3]
[380475798,1755789044196,-480.0,0.00021917,3]
[380475799,1755789044206,-751.37,0.00021917,3]
[380475800,1755789044216,-541.69,0.00021917,3]
[380475801,1755789044226,-1034.49,0.00021917,3]
[380475802,1755789044236,-151.0,0.00021917,2]
[380475803,1755789044245,-480.0,0.00021917,3]
[380475804,1755789044258,-823.84,0.00021917,3]
[380475805,1755789044277,-480.0,0.00021917,3]
[380475806,1755789044286,-151.0,0.00021917,2]
[380475807,1755789044295,-480.0,0.00021917,3]
[380475808,1755789044305,-480.00037294,0.00021917,3]
[380475809,1755789044314,-470.49463778,0.00021917,3]
[380475810,1755789044323,-2554.97,0.00021917,3]
[380475811,1755789044333,-575.07,0.00021917,3]
[380475812,1755789044342,-480.0,0.00021917,3]
[380475813,1755789044351,-480.0,0.00021917,3]
[380475814,1755789044361,-460.0,0.00021917,3]
[380475815,1755789044370,-480.0,0.00021917,3]
[380475816,1755789044380,-804.12,0.00021917,3]
[380475817,1755789044390,-2279.03,0.00021917,3]
[380475818,1755789044400,-283.5213804,0.00021917,3]
[380475819,1755789044409,-983.22,0.00021917,3]
[380475820,1755789044419,-480.0,0.00021917,3]
[380475821,1755789044429,-480.0,0.00021917,3]
[380475822,1755789044438,-480.0,0.00021917,3]
[380475823,1755789044447,-480.0,0.00021917,3]
[380475824,1755789044456,-723.45,0.00021917,3]
[380475825,1755789044465,-480.0,0.00021917,3]
[380475826,1755789044477,-480.0,0.00021917,3]
[380475827,1755789044486,-480.0,0.00021917,3]
[380475828,1755789044496,-480.0,0.00021917,3]
[380475829,1755789044506,-3325.88,0.00021917,3]
[380475830,1755789044516,-417.15472785,0.00021917,3]
[380475831,1755789044525,-480.0,0.00021917,3]
[380475832,1755789044535,-480.0,0.00021917,3]
[380475833,1755789044544,-480.0,0.00021917,3]
[380475834,1755789044554,-1928.42,0.00021917,3]
[380475835,1755789044563,-5464.66,0.00021917,3]
[380475836,1755789044573,-480.0,0.00021917,3]
[380475837,1755789044584,-151.0,0.00021917,2]
[380475838,1755789044593,-151.0,0.00021917,2]
[380475839,1755789044604,-480.0,0.00021917,3]
[380475840,1755789044614,-480.0,0.00021917,3]
[380475841,1755789044623,-480.0,0.00021917,3]
[380475842,1755789044633,-3474.66,0.00021917,2]
[380475843,1755789044643,-480.0,0.00021917,3]
[380475844,1755789044652,-480.0,0.00021917,3]
[380475845,1755789044662,-480.0,0.00021917,3]
[380475846,1755789044671,-480.0,0.00021917,3]
[380475847,1755789044681,-480.0,0.00021917,3]
[380475848,1755789044691,-14424.21,0.00021917,3]
[380475849,1755789044700,-480.0,0.00021917,3]
[380475850,1755789044710,-480.0,0.00021917,3]
[380475851,1755789044719,-1177.23,0.00021917,3]
[380475852,1755789044730,-151.0,0.00021917,2]
[380475853,1755789044739,-480.0,0.00021917,3]
[380475854,1755789044750,-151.0,0.00021917,2]
[380475855,1755789044759,-769.08,0.00021917,3]
[380475856,1755789044768,-480.0,0.00021917,3]
[380475857,1755789044778,-151.0,0.00021917,2]
[380475858,1755789044789,-480.0,0.00021917,3]
[380475859,1755789044799,-587.76,0.00021917,3]
[380475860,1755789044809,-4935.04,0.00021917,3]
[380475861,1755789044818,-480.0,0.00021917,3]
[380475862,1755789044828,-1184.81,0.00021917,3]
[380475863,1755789044837,-2603.06,0.00021917,3]
[380475864,1755789044846,-480.0,0.00021917,3]
[380475865,1755789044856,-561.71,0.00021917,3]
[380475866,1755789044865,-480.0,0.00021917,3]
[380475867,1755789044874,-480.0,0.00021917,3]
[380475868,1755789044883,-480.0,0.00021917,3]
[380475869,1755789044893,-1024.11,0.00021917,3]
[380475870,1755789044903,-480.0,0.00021917,3]
[380475871,1755789044913,-6832.83,0.00021917,3]
[380475872,1755789044922,-480.0,0.00021917,3]
[380475873,1755789044932,-480.0,0.00021917,3]
[380475874,1755789044942,-151.0,0.00021917,2]
[380475875,1755789044951,-480.0,0.00021917,3]
[380475876,1755789044960,-480.0,0.00021917,3]
[380475877,1755789044970,-9670.29,0.00021917,3]
[380475878,1755789044981,-480.0,0.00021917,3]
[380475879,1755789044991,-461.27936865,0.00021917,3]
[380475880,1755789045000,-480.0,0.00021917,3]
[380475881,1755789045010,-480.0,0.00021917,3]
[380475882,1755789045020,-460.0,0.00021917,3]
[380475883,1755789045030,-2069.39,0.00021917,3]
[380475884,1755789045040,-693.19,0.00021917,3]
[380475885,1755789045049,-693.19,0.00021917,3]
[380475886,1755789045059,-278.33797847,0.00021917,3]
[380475887,1755789045068,-693.19,0.00021917,3]
[380475888,1755789045078,-693.19,0.00021917,3]
[380475889,1755789045087,-693.19,0.00021917,3]
[380475890,1755789045096,-693.19,0.00021917,3]
[380475891,1755789045106,-693.19,0.00021917,3]
[380475892,1755789045115,-693.19,0.00021917,3]
[380475893,1755789045125,-693.19,0.00021917,3]
[380475894,1755789045134,-564.67,0.00021917,3]
[380475895,1755789045144,-693.19,0.00021917,3]
[380475896,1755789045153,-480.0,0.00021917,3]
[380475897,1755789045163,-693.19,0.00021917,3]
[380475898,1755789045173,-693.19,0.00021917,3]
[380475899,1755789045183,-693.19,0.00021917,3]
[380475900,1755789045192,-693.19,0.00021917,3]
[380475901,1755789045202,-693.19,0.00021917,3]
[380475902,1755789045211,-480.0,0.00021917,3]
[380475903,1755789045221,-693.19,0.00021917,3]
[380475904,1755789045231,-693.19,0.00021917,3]
[380475905,1755789045241,-693.19,0.00021917,3]
[380475906,1755789045251,-693.19,0.00021917,3]
[380475907,1755789045262,-693.19,0.00021917,3]
[380475908,1755789045272,-693.19,0.00021917,3]
[380475909,1755789045281,-693.19,0.00021917,3]
[380475910,1755789045291,-151.0,0.00021917,2]
[380475911,1755789045302,-693.19,0.00021917,3]
[380475912,1755789045313,-151.0,0.00021917,2]
[380475913,1755789045323,-693.27526454,0.00021917,3]
[380475914,1755789045332,-151.0,0.00021917,2]
[380475915,1755789045343,-274.661392,0.00021917,2]
[380475916,1755789045354,-151.0,0.00021917,2]
[380475917,1755789045364,-151.0,0.00021917,2]
[380475918,1755789045373,-201.964818,0.00021917,2]
[380475919,1755789045383,-1912.91,0.00021917,3]
[380475920,1755789045393,-480.0,0.00021917,3]
[380475921,1755789045403,-4899.41,0.00021917,3]
[380475922,1755789045412,-480.0,0.00021917,3]
[380475923,1755789045422,-964.21,0.00021917,3]
[380475924,1755789045431,-2638.48,0.00021917,3]
[380475925,1755789045441,-1000.0,0.00021917,3]
[380475926,1755789045451,-151.0,0.00021917,2]
[380475927,1755789045460,-151.755237,0.00021917,2]
[380475928,1755789045469,-480.0,0.00021917,3]
[380475929,1755789045480,-1162.1,0.00021917,3]
[380475930,1755789045489,-739.44,0.00021917,3]
[380475931,1755789045498,-837.52,0.00021917,3]
[380475932,1755789045508,-754.79,0.00021917,3]
[380475933,1755789045518,-151.0,0.00021917,2]
[380475935,1755789045527,-480.0,0.00021917,3]
[380475937,1755789045537,-151.0,0.00021917,2]
[380475944,1755789045698,-480.0,0.00021917,3]
[380475945,1755789045708,-328.87660608,0.00021917,3]
[380475946,1755789045992,-168.96339392,0.00021917,3]
[380475947,1755789046002,-480.0,0.00021917,3]
[380475948,1755789046012,-1202.36,0.00021917,3]
[380475949,1755789046021,-480.0,0.00021917,3]
[380475950,1755789046031,-611.41,0.00021917,3]
[380475951,1755789046039,-656.61,0.00021917,3]
[380475952,1755789046049,-10586.33961378,0.00021917,3]